Cogmind - Beta 13 @@@ ROGUE MODE // 2024.04.05 @ 10:45:24 Player: Spuddz Result: Destroyed by G-34 Mercenary with Small Laser Performance ------------- Evolutions (1) 500 Regions Visited (2) 400 Robots Destroyed (28) 140 Value Destroyed (787) 787 Prototype IDs (1) 20 Alien Tech Used (0) 0 Bonus (0) 0 TOTAL SCORE: 1847 Bonus ------- None Cogmind --------- Core Integrity 0/400 Matter 241/300 Energy 250/250 System Corruption 0% Temperature Cool (6) Movement Treading (160) Location -9/Materials Parts ------- > --- POWER (1) -------- Ion Engine > --- PROPULSION (2) --- Light Treads Light Treads > --- UTILITY (4) ------ Medium Storage Unit Sensor Array > --- WEAPON (2) ------- Heavy Assault Rifle Rocket Launcher > --- INVENTORY (10) --- Light Treads Aluminum Leg Aluminum Leg Compact Wheel Hacking Suite Light Assault Rifle Peak State ------------ > --- POWER ------------ Heavy Ion Engine > --- PROPULSION ------- Light Treads Light Treads > --- UTILITY ---------- Medium Storage Unit Sensor Array Signal Interpreter ECM Suite > --- WEAPON ----------- Light Assault Rifle Heavy Assault Rifle > --- INVENTORY -------- Ion Engine Ion Engine Ion Engine Light Treads Light Treads Light Treads Light Treads Compact Wheel Hacking Suite [Rating: 13] Favorites ----------- Power Ion Engine Engine Ion Engine Propulsion Light Treads Treads Light Treads Utility Medium Storage Unit Device ECM Suite Storage Medium Storage Unit Processor Signal Interpreter Weapon Assault Rifle Ballistic Gun Assault Rifle Launcher Rocket Launcher Build | -11 -10 -9 ------- Run | Yrd Mat Mat Slots Evolved 2 | . . 2 Power . | . . . Propulsion . | . . . Utility 2 | . . 2 Weapon . | . . . Parts Attached 31 | 7 4 20 Power 5 | 1 . 4 Engine 5 | 1 . 4 Core . | . . . Reactor . | . . . Propulsion 9 | 2 1 6 Treads 9 | 2 1 6 Leg . | . . . Wheel . | . . . Hover . | . . . Flight . | . . . Utility 8 | 2 2 4 Device 5 | 1 1 3 Storage 2 | 1 1 . Processor 1 | . . 1 Hackware . | . . . Protection . | . . . Artifact . | . . . Weapon 9 | 2 1 6 Energy Gun . | . . . Energy Cannon . | . . . Ballistic Gun 8 | 2 1 5 Ballistic Cannon . | . . . Launcher 1 | . . 1 Special Weapon . | . . . Impact Weapon . | . . . Slashing Weapon . | . . . Piercing Weapon . | . . . Special Melee Weapon . | . . . Unidentified Prototypes 1 | . . 1 Parts Lost 9 | . . 9 Power 1 | . . 1 Propulsion 4 | . . 4 Utility 1 | . . 1 Weapon 3 | . . 3 Highest Loss Streak 3 | . . 3 To Critical Strikes . | . . . Average Slot Usage (%) 89 | . 100 81 Engine 12 | . 14 10 Treads 23 | . 28 20 Device 14 | . 14 14 Storage 12 | . 14 11 Processor 2 | . . 4 Ballistic Gun 22 | . 28 18 Naked Turns . | . . . Heaviest Build 25 | 14 21 25 Greatest Support 40 | 40 40 40 Greatest Overweight (x) 4 | 1 . 4 Average Overweight (x) . | . . . Largest Inventory Capacity 10 | 8 10 10 Average Capacity 9 | 7 8 10 Most Carried 10 | 6 10 10 Average Carried 6 | 2 6 7 Final Capacity 10 | 8 10 10 Final Carried 10 | 2 10 6 Class Distribution -------------------- 100% | Mutant Dominant Class ---------------- Mutant | -10/Materials Mutant | -9/Materials Resources | -11 -10 -9 ----------- Run | Yrd Mat Mat Matter Collected 908 | 220 300 388 Remotely . | . . . Salvage Created 1075 | 43 331 701 Parts 60 | 6 24 30 Haulers Intercepted 3 | . 2 1 Recyclers Shooed 3 | . . 3 Parts Field Recycled . | . . . Retrieved Matter . | . . . Parts Self-Destructed . | . . . Prevented . | . . . Kills | -11 -10 -9 ------- Run | Yrd Mat Mat Combat Hostiles Destroyed 19 | . 4 15 Guns 18 | . 4 14 AOE 1 | . . 1 Classes Destroyed 8 | 1 5 2 Worker 2 | . 1 1 Tunneler 2 | 2 . . Hauler 3 | . 2 1 Operator 1 | . 1 . Watcher 1 | . 1 . Grunt 15 | . 4 11 Duelist 2 | . . 2 Sentry 2 | . . 2 Best Kill Streak 3 | 1 3 3 Combat Bots Only 3 | . 2 3 Max Kills in Single Turn 1 | 1 1 1 Gunslinging . | . . . Exploded 1 | . . 1 Melee . | . . . Uniques/NPCs Destroyed . | . . . Combat | -11 -10 -9 -------- Run | Yrd Mat Mat Hostile Shots Fired 197 | . 38 159 Missed 54 | . 16 38 Damage Taken 1800 | . 269 1531 Core 416 | . 10 406 Absorbed by Shields 110 | . . 110 Core Remaining (%) 98 | 100 96 . Volleys Fired 118 | 6 33 79 Largest 2 | 2 2 2 Hottest 56 | 40 40 56 Shots Fired 227 | 12 66 149 Gun 226 | 12 66 148 Cannon . | . . . Launcher 1 | . . 1 Special . | . . . Kinetic 226 | 12 66 148 Thermal . | . . . Explosive 1 | . . 1 Electromagnetic . | . . . Robot Hit Streak 13 | 3 7 13 Robot Miss Streak 5 | 4 5 2 Penetration Max . | . . . Secondary Targets 4 | . 1 3 Max Gunslinging Chain 1 | . 1 1 Shots Hit Robots 149 | 5 37 107 Core Hits 64 | 3 16 45 Critical Kills 1 | . . 1 Critical Parts Destroyed 2 | . 2 . Critical Strikes 3 | . 2 1 Destroy 3 | . 2 1 Melee Attacks . | . . . Impact . | . . . Slashing . | . . . Piercing . | . . . Sneak Attacks . | . . . Combat Hostiles . | . . . Follow-up Attacks . | . . . Damage Inflicted 1788 | 47 480 1261 Guns 1736 | 47 480 1209 Cannons . | . . . Explosions 37 | . . 37 Melee . | . . . Ramming 15 | . . 15 Kinetic 1736 | 47 480 1209 Thermal . | . . . Explosive 37 | . . 37 Electromagnetic . | . . . Impact . | . . . Slashing . | . . . Piercing . | . . . Highest Corruption . | . . . Average Corruption . | . . . Corruption Purged . | . . . Corruption Blocked . | . . . Overload Shots . | . . . Overflow Damage . | . . . Projectiles . | . . . Explosions . | . . . Melee . | . . . Knockbacks . | . . . Impact . | . . . Kinetic . | . . . Secondary . | . . . Self-Inflicted Damage . | . . . Shots . | . . . Rammed 4 | . . 4 Targets Rammed 5 | . . 5 Kicked . | . . . Crushed 1 | . . 1 Highest Temperature 20 | . 20 15 Average Temperature 4 | . 6 3 Received Heat Transfer 778 | . 171 607 Siege Activations . | . . . Robots Corrupted . | . . . Combat Hostiles . | . . . Parts Fried . | . . . Impact Corruptions . | . . . Robots Melted . | . . . Combat Hostiles . | . . . Parts Melted . | . . . Heat Transferred . | . . . Parts Sabotaged . | . . . Parts Stolen . | . . . Parts Stripped . | . . . Power Chain Reactions . | . . . Alert | -11 -10 -9 ------- Run | Yrd Mat Mat Peak Influence 270 | 10 191 270 Initial 80 | . 6 80 Average 102 | 2 56 155 Maximum Alert Level 1 | . . 1 Low Security (%) 89 | 100 100 78 Level 1 10 | . . 21 Level 2 . | . . . Level 3 . | . . . Level 4 . | . . . Level 5 . | . . . High Security . | . . . Max Security . | . . . Squads Dispatched 2 | . 1 1 Investigation . | . . . Extermination . | . . . Reinforcement 2 | . 1 1 Assault . | . . . Garrison . | . . . Intercept . | . . . Searches Triggered . | . . . Construction Impeded . | . . . Haulers Reinforced . | . . . Active Scanning Responses . | . . . Cargo Convoy Interrupts . | . . . Stealth | -11 -10 -9 --------- Run | Yrd Mat Mat Distress Signals 4 | . . 4 Communications Jammed . | . . . Distress Signals . | . . . Times Spotted 47 | . 11 36 Peak Tracking Total 4 | . 2 4 Tactical Retreats 6 | . . 6 Traps | -11 -10 -9 ------- Run | Yrd Mat Mat Traps Triggered 2 | . . 2 Indirectly . | . . . Trap Hack Attempts . | . . . Triggered . | . . . Disarmed . | . . . Reprogrammed . | . . . Reused . | . . . Traps Extracted . | . . . Installed . | . . . Triggered . | . . . Machines | -11 -10 -9 ---------- Run | Yrd Mat Mat Machines Disabled . | . . . Max in Single Turn . | . . . Machines Repaired . | . . . Machines Dismantled . | . . . Machines Sabotaged . | . . . Overloaded Fab Kills . | . . . Hacking | -11 -10 -9 --------- Run | Yrd Mat Mat Machines Accessed 1 | . 1 . Terminals 1 | . 1 . Fabricators . | . . . Repair Stations . | . . . Recycling Units . | . . . Scanalyzers . | . . . Garrison Access . | . . . Total Hacks 2 | . 2 . Successful 1 | . 1 . Failed 1 | . 1 . Catastrophic . | . . . Database Lockouts . | . . . Manual . | . . . Terminals 2 | . 2 . Fabricators . | . . . Repair Stations . | . . . Recycling Units . | . . . Scanalyzers . | . . . Garrison Access . | . . . Terminal Hacks 1 | . 1 . Hauler Manifests 1 | . 1 . Fabricator Hacks . | . . . Repair Station Hacks . | . . . Recycling Unit Hacks . | . . . Scanalyzer . | . . . Garrison Access Hacks . | . . . Unauthorized Hacks . | . . . Terminals . | . . . Fabricators . | . . . Repair Stations . | . . . Recycling Units . | . . . Scanalyzers . | . . . Garrison Access . | . . . Data Cores Recovered . | . . . Used . | . . . Hacking Detections 1 | . 1 . Full Trace Events . | . . . Feedback Events . | . . . Feedback Blocked . | . . . Robot Schematics Acquired . | . . . Robots Built . | . . . Authchips . | . . . Time . | . . . Total Robot Build Rating . | . . . Part Schematics Acquired . | . . . Parts Built . | . . . Authchips . | . . . Time . | . . . Total Part Build Rating . | . . . Parts Repaired . | . . . Time . | . . . Parts Recycled . | . . . Recycled Matter . | . . . Retrieved Matter . | . . . Retrieved Components . | . . . Parts Scanalyzed . | . . . Part Schematics Acquired . | . . . Parts Damaged . | . . . Bothacking | -11 -10 -9 ------------ Run | Yrd Mat Mat Used RIF Installer . | . . . Robots Hacked . | . . . Non-combat . | . . . Combat . | . . . Robot Hacks Applied . | . . . Relay Couplers Released . | . . . Fabnet Peak Effective % . | . . . Robots Rewired . | . . . Allies Hacked . | . . . Hacks Repelled . | . . . Allies | -11 -10 -9 -------- Run | Yrd Mat Mat Total Allies . | . . . Largest Group . | . . . Highest-Rated Group . | . . . Highest-Rated Ally . | . . . Total Orders . | . . . Ally Attacks . | . . . Total Damage . | . . . Kills . | . . . Allies Corrupted . | . . . Allies Melted . | . . . Intel | -11 -10 -9 ------- Run | Yrd Mat Mat Robot Analysis Total . | . . . Derelict Logs Recovered . | . . . Drone Launches . | . . . Drone Recoveries . | . . . Exploration | -11 -10 -9 ------------- Run | Yrd Mat Mat Turns Passed 1705 | 121 724 860 Spaces Moved 813 | 67 379 367 Core 33 | 28 . 5 Treads 780 | 39 379 362 Legs . | . . . Wheels . | . . . Hover . | . . . Flight . | . . . Fastest Speed 50 | 50 160 160 Average Speed 158 | 126 160 162 Slowest Speed 250 | 160 160 250 Overloaded Moves . | . . . Propulsion Burnouts . | . . . Robots Hopped . | . . . Cave-ins Triggered . | . . . Exploration Rate (%) 31 | 5 62 28 Regions Visited 2 Branch Regions . Pre-discovered Areas . | . . . Known Exits Taken . | . . . Unknown Exits Taken 2 | 1 1 . Scrap Searched . | . . . Spaces Dug . | . . . Terrain Destroyed 8 | . . 8 Melee . | . . . Projectile . | . . . AOE 8 | . . 8 Terrain Rammed . | . . . Walls Destroyed . | . . . Machines Disabled . | . . . Actions | -11 -10 -9 --------- Run | Yrd Mat Mat Total 1017 | 92 432 493 Wait 13 | 5 . 8 Move 811 | 66 378 367 Hop . | . . . Pick Up 34 | 8 12 14 Fast Attach 1 | 1 . . Attach 24 | 6 . 18 Detach . | . . . Swap 6 | . 4 2 Drop 5 | . 5 . Fire 118 | 6 33 79 Melee . | . . . Ram . | . . . Kick . | . . . Crush 5 | . . 5 Escape Stasis . | . . . Rewire . | . . . Trap . | . . . Miscellaneous . | . . . Route ------- -11/Scrapyard -10/Materials (discovered 2 exits: [*Mat x2]) -9/Materials History --------- Turn | Location | Event 7 | -11/Scrapyard | Discovered new exit (range 15) 122 | -11/Scrapyard | Entered Materials 226 | -10/Materials | Discovered new exit (range 13) 312 | -10/Materials | Build established: Mutant 579 | -10/Materials | Discovered new exit (range 16) 846 | -10/Materials | Entered another Materials area 846 | -9/Materials | Evolved 2 slots: Utility x2 1162 | -9/Materials | Core integrity fell below 50% 1272 | -9/Materials | Core integrity fell below 20% 1432 | -9/Materials | Lost 3 parts (1p1n1u) 1706 | -9/Materials | Destroyed by G-34 Mercenary with Small Laser Last Messages --------------- Y-45 Defender destroyed. Lgt. Treads destroyed. Acquired 8 matter. G-34 Mercenary suffers critical hit (Destroy). G-34 Mercenary destroyed. Acquired 2 matter. Acquired Lgt. Treads. M-13 Machinist repairs Datajack. M-13 Machinist repairs O-16 Technician. Acquired Rocket Launcher. Crushed K-01 Serf. K-01 Serf destroyed. Acquired 17 matter. Acquired 3 matter. G-47 Trooper destroyed. Lgt. Assault Rifle destroyed. G-34 Mercenary destroyed. U-05 Engineer lays Concrete. U-05 Engineer builds a Wall. Slammed into T-07 Excavator. Map ----- +----------------------------------------------------+ | ############+######### # """ ## +%[""""" #???? | | ^ % % # ## #= """"" #???? | | / """ ## # #???? | | = # """ ## #####+####???? | | ##### ######### % ### """ # #### ###????? | | #####+#####?## %! # # #????? | | # #?? [[ # # #????? | | # #??? [[ # # #????? | | # % #???# [[ ######### ###### #????? | | # #???# #???????############+##???? | | # #???# #?????????# #???? | | + #???##+#####?????????# """" "T" #???? | | # #????# #?????????????# """" #???? | | # #????# #?????????????# """" #???? | | ###########????# ##########???## % #???? | | #???????# # ! #???# #???? | | #?####### # ###### %= #???? | | #?# ! # # # ##+##########???? | | ##+### #?# # # + #????????? | | # #?# # # # #????????? | | # #?# """ # # # """ #????????? | | # #?# """ # # # R" #????????? | | ####### """ + ? # """ #????????? | | ![ ## ! # # # #? a #????????? | | [ ## ####### ########## #????????? | | ####### + g @ +????????? | | ??????# #######+###########+####### #????????? | | ??????# #???# #??# #?? #????????? | | ??????# #???# !! #??# """ """ #???##????????? | | ??????# #???# ! #??# """ """ #?????????????? | | ??????# #???# #??# """ """ #?????????????? | | ??????# #???# #??# """ """ #?????????????? | | ??????######???# #??# #?????????????? | | ???????????????########??# [ #?????????????? | | ?????????????????????????? ??????????????? | | ???????????????????????????#######???????????????? | | | | | | | | | | | | | | | | | | | | | | | | | | | | | +----------------------------------------------------+ Best States ------------- Heat Dissipation 28 Energy Generation 14 Energy Capacity 280 Matter Stores 300 Matter Capacity 300 Sight Range 16 Robot Scan Range 14 Terrain Scan Range 16 Terrain Scan Density 10 ECM Strength 1 Evasion (%) 50 Recoil Reduction 2 Item Schematics ----------------- None Robot Schematics ------------------ None Fabricated ------------ Nothing Alien Tech Used ----------------- None Achievements -------------- None Challenges ------------ None Game ------ Seed BattleScatterClaws Manual? 0 Play Time 00:21:07 Cumulative 5.3 hours Start 2024.04.05 @ 10:22:54 End 2024.04.05 @ 10:45:24 Sessions 1 Manual Loads 0 Difficulty Rogue Special Mode None Game No. 15 Rogue 15 Adventurer 0 Explorer 0 Win Type - Total 0 Types 0/0/0/0/0/0/0/0/0 Lore% 5 Gallery% 11 Achievement% 12 Wizard Run 0 Options --------- Layout 1 ASCII 0 Keyboard 0 Movement Mouse Keybinds 0 Fullscreen 2 Font 32/Terminus Map View 50x35 Zoom Use 0% Tactical HUD 0 Map Filters NONE Filters NONE Steam 1 RUN: d655de51-068f-4bbf-b9f0-8fc481227ad0